Cogmind - Beta 13 @@@ ROGUE MODE // 2024.04.03 @ 23:11:12 Player: Olafz Result: Destroyed by G-47 Trooper with Particle Gun Performance ------------- Evolutions (1) 500 Regions Visited (2) 400 Robots Destroyed (39) 195 Value Destroyed (705) 705 Prototype IDs (2) 40 Alien Tech Used (0) 0 Bonus (0) 0 TOTAL SCORE: 1840 Bonus ------- None Cogmind --------- Core Integrity 0/400 Matter 295/300 Energy 125/125 System Corruption 7% Temperature Cool (9) Movement Walking (120) Location -9/Materials Parts ------- > --- POWER (1) -------- Light Ion Engine > --- PROPULSION (2) --- Aluminum Leg > --- UTILITY (4) ------ Small Storage Unit > --- WEAPON (2) ------- Small Laser > --- INVENTORY (8) ---- Cooled Ion Engine Aluminum Leg Weight Redist. System Signal Interpreter Signal Interpreter Signal Interpreter Peak State ------------ > --- POWER ------------ Cooled Ion Engine > --- PROPULSION ------- Aluminum Leg > --- UTILITY ---------- Small Storage Unit Sensor Array Signal Interpreter Transport Network Coupler > --- WEAPON ----------- Beam Rifle Improved Assault Rifle > --- INVENTORY -------- Light Ion Engine Cooled Ion Engine Aluminum Leg Weight Redist. System Signal Interpreter Signal Interpreter Signal Interpreter [Rating: 14] Favorites ----------- Power Ion Engine Engine Ion Engine Propulsion Aluminum Leg Leg Aluminum Leg Utility Small Storage Unit Device Sensor Array Storage Small Storage Unit Processor Transport Network Coupler Weapon Light Assault Rifle Energy Gun Beam Rifle Ballistic Gun Light Assault Rifle Build | -11 -10 -9 ------- Run | Yrd Mat Mat Slots Evolved 2 | . . 2 Power . | . . . Propulsion . | . . . Utility 2 | . . 2 Weapon . | . . . Parts Attached 26 | 6 6 14 Power 7 | 2 1 4 Engine 7 | 2 1 4 Core . | . . . Reactor . | . . . Propulsion 10 | 2 3 5 Treads . | . . . Leg 10 | 2 3 5 Wheel . | . . . Hover . | . . . Flight . | . . . Utility 4 | 1 1 2 Device 1 | . . 1 Storage 1 | 1 . . Processor 2 | . 1 1 Hackware . | . . . Protection . | . . . Artifact . | . . . Weapon 5 | 1 1 3 Energy Gun 2 | . . 2 Energy Cannon . | . . . Ballistic Gun 3 | 1 1 1 Ballistic Cannon . | . . . Launcher . | . . . Special Weapon . | . . . Impact Weapon . | . . . Slashing Weapon . | . . . Piercing Weapon . | . . . Special Melee Weapon . | . . . Unidentified Prototypes 2 | . . 2 Parts Lost 14 | . 4 10 Power 2 | . 1 1 Propulsion 7 | . 3 4 Utility 3 | . . 3 Weapon 2 | . . 2 Highest Loss Streak 4 | . 4 4 To Critical Strikes . | . . . Average Slot Usage (%) 79 | . 79 77 Engine 12 | . 13 9 Leg 23 | . 26 16 Device 2 | . . 6 Storage 12 | . 14 11 Processor 9 | . 5 15 Ballistic Gun 17 | . 18 15 Naked Turns . | . . . Heaviest Build 20 | 11 12 20 Greatest Support 20 | 20 20 20 Greatest Overweight (x) 3 | . 3 1 Average Overweight (x) . | . . . Largest Inventory Capacity 8 | 8 8 8 Average Capacity 7 | 7 8 8 Most Carried 8 | 1 8 8 Average Carried 3 | . 2 6 Final Capacity 8 | 8 8 8 Final Carried 8 | 1 8 6 Class Distribution -------------------- 55% | Mutant 26% | Scavenger-Mutant 14% | Scavenger-Skirmisher 3% | Skirmisher Dominant Class ---------------- Mutant | -10/Materials Scavenger-Skirmisher | -9/Materials Resources | -11 -10 -9 ----------- Run | Yrd Mat Mat Matter Collected 767 | 160 265 342 Remotely . | . . . Salvage Created 1426 | . 392 1034 Parts 90 | . 30 60 Haulers Intercepted 4 | . 1 3 Recyclers Shooed 3 | . . 3 Parts Field Recycled . | . . . Retrieved Matter . | . . . Parts Self-Destructed . | . . . Prevented . | . . . Kills | -11 -10 -9 ------- Run | Yrd Mat Mat Combat Hostiles Destroyed 16 | . 4 12 Guns 16 | . 4 12 Classes Destroyed 9 | . 6 3 Worker 9 | . 6 3 Builder 4 | . 2 2 Hauler 4 | . 1 3 Recycler 4 | . . 4 Operator 1 | . 1 . Watcher 1 | . 1 . Grunt 12 | . 4 8 Brawler 1 | . . 1 Sentry 3 | . . 3 Best Kill Streak 6 | . 5 6 Combat Bots Only 6 | . 3 6 Max Kills in Single Turn 4 | . 1 4 Gunslinging . | . . . Exploded . | . . . Melee . | . . . Uniques/NPCs Destroyed . | . . . Combat | -11 -10 -9 -------- Run | Yrd Mat Mat Hostile Shots Fired 181 | . 59 122 Missed 54 | . 13 41 Damage Taken 1978 | . 567 1411 Core 574 | . 159 415 Absorbed by Shields . | . . . Core Remaining (%) 68 | 100 36 . Volleys Fired 206 | . 123 83 Largest 2 | . 2 2 Hottest 79 | . 40 79 Shots Fired 269 | . 134 135 Gun 269 | . 134 135 Cannon . | . . . Launcher . | . . . Special . | . . . Kinetic 253 | . 134 119 Thermal 16 | . . 16 Explosive . | . . . Electromagnetic . | . . . Robot Hit Streak 15 | . 13 15 Robot Miss Streak 11 | . 11 2 Penetration Max . | . . . Secondary Targets 1 | . . 1 Max Gunslinging Chain 1 | . . 1 Shots Hit Robots 178 | . 82 96 Core Hits 76 | . 36 40 Critical Kills . | . . . Critical Parts Destroyed . | . . . Critical Strikes 2 | . . 2 Burn 2 | . . 2 Melee Attacks . | . . . Impact . | . . . Slashing . | . . . Piercing . | . . . Sneak Attacks . | . . . Combat Hostiles . | . . . Follow-up Attacks . | . . . Damage Inflicted 2259 | . 653 1606 Guns 1865 | . 653 1212 Cannons . | . . . Explosions 394 | . . 394 Melee . | . . . Ramming . | . . . Kinetic 1715 | . 653 1062 Thermal 544 | . . 544 Explosive . | . . . Electromagnetic . | . . . Impact . | . . . Slashing . | . . . Piercing . | . . . Highest Corruption 7 | . . 7 Average Corruption 4 | . . 4 Corruption Purged . | . . . Corruption Blocked . | . . . Effects 3 | . . 3 Message Errors 1 | . . 1 Misfires 1 | . . 1 Alerts 1 | . . 1 Overload Shots . | . . . Overflow Damage 84 | . . 84 Projectiles . | . . . Explosions 84 | . . 84 Melee . | . . . Knockbacks . | . . . Impact . | . . . Kinetic . | . . . Secondary . | . . . Self-Inflicted Damage 81 | . . 81 Shots 1 | . . 1 Rammed . | . . . Targets Rammed . | . . . Kicked . | . . . Crushed . | . . . Highest Temperature 156 | . 15 156 Average Temperature 42 | . 6 52 Received Heat Transfer 744 | . 324 420 Siege Activations . | . . . Robots Corrupted . | . . . Combat Hostiles . | . . . Parts Fried . | . . . Impact Corruptions . | . . . Robots Melted . | . . . Combat Hostiles . | . . . Parts Melted 1 | . . 1 Heat Transferred 831 | . . 831 Parts Sabotaged . | . . . Parts Stolen . | . . . Parts Stripped . | . . . Power Chain Reactions . | . . . Alert | -11 -10 -9 ------- Run | Yrd Mat Mat Peak Influence 386 | . 145 386 Initial 26 | . . 26 Average 97 | . 60 183 Maximum Alert Level 1 | . . 1 Low Security (%) 86 | 100 100 60 Level 1 13 | . . 39 Level 2 . | . . . Level 3 . | . . . Level 4 . | . . . Level 5 . | . . . High Security . | . . . Max Security . | . . . Squads Dispatched 3 | . 1 2 Investigation . | . . . Extermination . | . . . Reinforcement 3 | . 1 2 Assault . | . . . Garrison . | . . . Intercept . | . . . Searches Triggered . | . . . Construction Impeded 1 | . . 1 Haulers Reinforced . | . . . Active Scanning Responses . | . . . Cargo Convoy Interrupts . | . . . Stealth | -11 -10 -9 --------- Run | Yrd Mat Mat Distress Signals 4 | . 3 1 Communications Jammed . | . . . Distress Signals . | . . . Times Spotted 42 | . 19 23 Peak Tracking Total 7 | . 4 7 Tactical Retreats 1 | . 1 . Traps | -11 -10 -9 ------- Run | Yrd Mat Mat Traps Triggered 1 | . . 1 Indirectly . | . . . Trap Hack Attempts . | . . . Triggered . | . . . Disarmed . | . . . Reprogrammed . | . . . Reused . | . . . Traps Extracted . | . . . Installed . | . . . Triggered . | . . . Machines | -11 -10 -9 ---------- Run | Yrd Mat Mat Machines Disabled 3 | . . 3 Max in Single Turn 3 | . . 3 Machines Repaired . | . . . Machines Dismantled . | . . . Machines Sabotaged . | . . . Overloaded Fab Kills . | . . . Hacking | -11 -10 -9 --------- Run | Yrd Mat Mat Machines Accessed 1 | . 1 . Terminals 1 | . 1 . Fabricators . | . . . Repair Stations . | . . . Recycling Units . | . . . Scanalyzers . | . . . Garrison Access . | . . . Total Hacks 2 | . 2 . Successful . | . . . Failed 2 | . 2 . Catastrophic 2 | . 2 . Database Lockouts . | . . . Manual . | . . . Terminals 2 | . 2 . Fabricators . | . . . Repair Stations . | . . . Recycling Units . | . . . Scanalyzers . | . . . Garrison Access . | . . . Terminal Hacks . | . . . Fabricator Hacks . | . . . Repair Station Hacks . | . . . Recycling Unit Hacks . | . . . Scanalyzer . | . . . Garrison Access Hacks . | . . . Unauthorized Hacks . | . . . Terminals . | . . . Fabricators . | . . . Repair Stations . | . . . Recycling Units . | . . . Scanalyzers . | . . . Garrison Access . | . . . Data Cores Recovered . | . . . Used . | . . . Hacking Detections 1 | . 1 . Full Trace Events 1 | . 1 . Feedback Events . | . . . Feedback Blocked . | . . . Robot Schematics Acquired . | . . . Robots Built . | . . . Authchips . | . . . Time . | . . . Total Robot Build Rating . | . . . Part Schematics Acquired . | . . . Parts Built . | . . . Authchips . | . . . Time . | . . . Total Part Build Rating . | . . . Parts Repaired . | . . . Time . | . . . Parts Recycled . | . . . Recycled Matter . | . . . Retrieved Matter . | . . . Retrieved Components . | . . . Parts Scanalyzed . | . . . Part Schematics Acquired . | . . . Parts Damaged . | . . . Bothacking | -11 -10 -9 ------------ Run | Yrd Mat Mat Used RIF Installer . | . . . Robots Hacked . | . . . Non-combat . | . . . Combat . | . . . Robot Hacks Applied . | . . . Relay Couplers Released . | . . . Fabnet Peak Effective % . | . . . Robots Rewired . | . . . Allies Hacked . | . . . Hacks Repelled . | . . . Allies | -11 -10 -9 -------- Run | Yrd Mat Mat Total Allies . | . . . Largest Group . | . . . Highest-Rated Group . | . . . Highest-Rated Ally . | . . . Total Orders . | . . . Ally Attacks . | . . . Total Damage . | . . . Kills . | . . . Allies Corrupted . | . . . Allies Melted . | . . . Intel | -11 -10 -9 ------- Run | Yrd Mat Mat Robot Analysis Total . | . . . Derelict Logs Recovered . | . . . Drone Launches . | . . . Drone Recoveries . | . . . Exploration | -11 -10 -9 ------------- Run | Yrd Mat Mat Turns Passed 1223 | 72 747 404 Spaces Moved 604 | 55 414 135 Core 9 | 3 6 . Treads . | . . . Legs 595 | 52 408 135 Wheels . | . . . Hover . | . . . Flight . | . . . Fastest Speed 50 | 50 100 120 Average Speed 122 | 116 121 129 Slowest Speed 200 | 120 200 190 Overloaded Moves . | . . . Propulsion Burnouts . | . . . Robots Hopped . | . . . Cave-ins Triggered 1 | . . 1 Exploration Rate (%) 21 | 4 40 20 Regions Visited 2 Branch Regions . Pre-discovered Areas . | . . . Known Exits Taken . | . . . Unknown Exits Taken 2 | 1 1 . Scrap Searched . | . . . Spaces Dug . | . . . Terrain Destroyed 17 | . . 17 Melee . | . . . Projectile . | . . . AOE 17 | . . 17 Terrain Rammed . | . . . Walls Destroyed . | . . . Machines Disabled . | . . . Actions | -11 -10 -9 --------- Run | Yrd Mat Mat Total 851 | 60 549 242 Wait . | . . . Move 602 | 54 413 135 Hop . | . . . Pick Up 9 | . 7 2 Fast Attach 17 | 5 6 6 Attach 5 | . . 5 Detach 2 | . . 2 Swap 4 | 1 . 3 Drop 6 | . . 6 Fire 206 | . 123 83 Melee . | . . . Ram . | . . . Kick . | . . . Crush . | . . . Escape Stasis . | . . . Rewire . | . . . Trap . | . . . Miscellaneous . | . . . Route ------- -11/Scrapyard -10/Materials (discovered 2 exits: [*Mat] / [*Min]) -9/Materials (discovered 2 exits: [*Min] / [*Sto]) History --------- Turn | Location | Event 19 | -11/Scrapyard | Discovered new exit (range 15) 73 | -11/Scrapyard | Entered Materials 135 | -10/Materials | Discovered new exit (range 12) 302 | -10/Materials | Build established: Mutant 330 | -10/Materials | Core integrity fell below 50% 368 | -10/Materials | Lost 4 parts (1p3n) 712 | -10/Materials | Discovered new exit (range 16) 801 | -10/Materials | Build established: Scavenger-Mutant 820 | -10/Materials | Entered another Materials area 820 | -9/Materials | Evolved 2 slots: Utility x2 870 | -9/Materials | Discovered new exit (range 11) 1107 | -9/Materials | Lost 4 parts (1n2u1w) 1148 | -9/Materials | Crushed by falling debris 1148 | -9/Materials | Core integrity fell below 50% 1179 | -9/Materials | Lost 3 parts (1p1n1u) 1194 | -9/Materials | Discovered new exit (range 8) 1201 | -9/Materials | Core integrity fell below 20% 1224 | -9/Materials | Destroyed by G-47 Trooper with Particle Gun Last Messages --------------- 01206_ K-01 Serf collects debris. 01206_ U-05 Engineer builds a Wall. 01209_ U-05 Engineer lays Concrete. 01210_ K-01 Serf collects debris. 01210_ U-05 Engineer builds a Door. 01213_ K-01 Serf collects debris. 01213_ U-05 Engineer builds a Wall. 01214_ G-34 Mercenary destroyed. 01216_ K-01 Serf collects debris. 01216_ U-05 Engineer lays Concrete. 01217_ U-05 Engineer builds a Wall. 01218_ U-05 Engineer lays Concrete. 01219_ K-01 Serf collects debris. 01219_ U-05 Engineer lays Concrete. 01219_ R-06 Scavenger collects Wheel. 01220_ U-05 Engineer builds a Wall. 01222_ U-05 Engineer lays Concrete. 01222_ K-01 Serf collects debris. 01223_ Aluminum Leg destroyed. 01224_ U-05 Engineer lays Concrete. Map ----- +----------------------------------------------------+ | ?????????????????????????????????????????????????? | | ?????????????????????????????????????????????????? | | ?????????????????????????????????????????????????? | | ?????????????????????????????????????????????????? | | ?????????????????????????????????????????????????? | | ?????????????????????????????????????????????????? | | ?????????????????????????????????????????????????? | | ?????????????????????????????????????????????????? | | ?????????????????????????????????????????????????? | | ?????????????????????????????????????????????????? | | ???????? ??????????????? ??????????????????????? | | ???????? ??????????????? ??????????????????????? | | ????#### #?????????????? ??????????????????????? | | ???? #?????????????# a#?????????????????????? | | ????? +?????????????# #?????????????????????? | | ????? #?????????????# #?????????????????????? | | ?????# #?????????????+ +?????????????????????? | | ###### #?????????????# #?????????????????????? | | ## #????###???#### k##????????????????????? | | ## ###### #####""" #????????????????????? | | ## # #" #????????????????????? | | ## # [ #"! #????????????????????? | | # # !]] #"" < #????????????????????? | | # + "T"!|]] #"! #????????????????????? | | # # """! ][* #" #????????????????????? | | %[ # # !!%===% # u@ #????????????????????? | | % # ##########/##;# ##????????????????????? | | #+### # "# %= #?????????????????????? | | ! % # """ " * #?????????????????????? | | % # """ ""%= r% #?????????????????????? | | # """ ";! ##????????????????????? | | ##### # ;; % #????????????????????? | | ########### """ ; g k* #????????????????????? | | ??# """ ; = %= + ""???????????????? | | ???# """ ; %g # ""???????????????? | | """ ""????# # g #????????????????????? | | """ ""????# """ # g #"T"####????????????????????? | | """ ""????# """ # #####???????????????????????? | | ???# """ # #???????????????????????????? | | [ ???? ?# #???????????????????????????? | | #???####?# #???????????????????????????? | | ?########???????? #???????????????????????????? | | ???????????????? ???????????????????????????? | | ???????????????? ???????????????????????????? | | ???????????????? ???????????????????????????? | | ???????????????# ???????????????????????????? | | ???????????????# ????????????????????????????? | | ????????????????? ""T????????????????????????????? | | ?????????????????????????????????????????????????? | | ?????????????????????????????????????????????????? | +----------------------------------------------------+ Best States ------------- Heat Dissipation 28 Energy Generation 14 Energy Capacity 280 Matter Stores 300 Matter Capacity 300 Sight Range 16 Robot Scan Range 14 Terrain Scan Density 10 Evasion (%) 55 Item Schematics ----------------- None Robot Schematics ------------------ None Fabricated ------------ Nothing Alien Tech Used ----------------- None Achievements -------------- None Challenges ------------ None Game ------ Seed FissionTachyonClaws Manual? 0 Play Time 00:23:07 Cumulative 17.4 hours Start 2024.04.03 @ 22:26:12 End 2024.04.03 @ 23:11:12 Sessions 1 Manual Loads 0 Difficulty Rogue Special Mode None Game No. 47 Rogue 45 Adventurer 2 Explorer 0 Win Type - Total 0 Types 0/0/0/0/0/0/0/0/0 Lore% 16 Gallery% 21 Achievement% 19 Wizard Run 0 Options --------- Layout 0 ASCII 0 Keyboard 1 Movement Arrows Keybinds 0 Fullscreen 2 Font 18/SmallcapsGlow Map View 76x50 Zoom Use 0% Tactical HUD 1 Map Filters NONE Filters NONE Steam 1 RUN: b785898a-455e-40ce-98a6-3fac5582135b